[Event "Titled Tuesday Blitz November 9 2021"]
[White "Terry, Renato"]
[Black "Gaehwiler, Gabriel"]
[WhiteFideId "3803457"]
[BlackFideId "1314530"]
[WhiteElo "2577"]
[BlackElo "2320"]
[Result "0-1"]
[Round "03"]
[TimeControl "180+1"]
[Date "2021.11.09"]
[WhiteClock "0:00:05"]
[BlackClock "0:00:15"]

1. e4 {[%clk 0:03:00]}  c5 {[%clk 0:02:59]} 2. Nf3 {[%clk 0:03:00]}  d6 {[%clk 0:02:59]} 3. Bb5+ {[%clk 0:03:01]}  Bd7 {[%clk 0:02:59]} 4. Bxd7+ {[%clk 0:03:01]}  Qxd7 {[%clk 0:03:00]} 5. O-O {[%clk 0:03:01]}  Nc6 {[%clk 0:03:00]} 6. c3 {[%clk 0:03:02]}  Nf6 {[%clk 0:03:00]} 7. d4 {[%clk 0:03:02]}  cxd4 {[%clk 0:02:56]} 8. cxd4 {[%clk 0:03:03]}  d5 {[%clk 0:02:52]} 9. e5 {[%clk 0:03:01]}  Ne4 {[%clk 0:02:52]} 10. Be3 {[%clk 0:02:59]}  e6 {[%clk 0:02:50]} 11. Ne1 {[%clk 0:02:59]}  f6 {[%clk 0:02:48]} 12. f3 {[%clk 0:02:56]}  Ng5 {[%clk 0:02:49]} 13. Nd3 {[%clk 0:02:57]}  Nf7 {[%clk 0:02:46]} 14. f4 {[%clk 0:02:50]}  Be7 {[%clk 0:02:37]} 15. Nc3 {[%clk 0:02:46]}  O-O {[%clk 0:02:36]} 16. exf6 {[%clk 0:02:34]}  Bxf6 {[%clk 0:02:23]} 17. Ne5 {[%clk 0:02:34]}  Qe7 {[%clk 0:02:17]} 18. Qd3 {[%clk 0:02:00]}  Nd6 {[%clk 0:02:13]} 19. Rae1 {[%clk 0:01:56]}  Rae8 {[%clk 0:02:04]} 20. Bf2 {[%clk 0:01:44]}  Qc7 {[%clk 0:01:45]} 21. Re2 {[%clk 0:01:37]}  Nb4 {[%clk 0:01:17]} 22. Qh3 {[%clk 0:01:32]}  Nf5 {[%clk 0:01:09]} 23. g4 {[%clk 0:01:11]}  Nd6 {[%clk 0:01:06]} 24. a3 {[%clk 0:01:01]}  Nc6 {[%clk 0:01:03]} 25. Nf3 {[%clk 0:00:48]}  Qf7 {[%clk 0:00:41]} 26. Rfe1 {[%clk 0:00:45]}  Bd8 {[%clk 0:00:40]} 27. Bg3 {[%clk 0:00:40]}  Nc4 {[%clk 0:00:33]} 28. b3 {[%clk 0:00:25]}  Nxa3 {[%clk 0:00:27]} 29. Ra1 {[%clk 0:00:23]}  Be7 {[%clk 0:00:21]} 30. Rea2 {[%clk 0:00:16]}  Bb4 {[%clk 0:00:21]} 31. Ne2 {[%clk 0:00:06]}  Nb5 {[%clk 0:00:21]} 32. Rd1 {[%clk 0:00:06]}  Bd6 {[%clk 0:00:20]} 33. Rad2 {[%clk 0:00:04]}  Bc7 {[%clk 0:00:20]} 34. Rd3 {[%clk 0:00:04]}  Bb6 {[%clk 0:00:20]} 35. Kh1 {[%clk 0:00:03]}  h6 {[%clk 0:00:20]} 36. Qg2 {[%clk 0:00:02]}  Qg6 {[%clk 0:00:20]} 37. h3 {[%clk 0:00:02]}  Qe4 {[%clk 0:00:20]} 38. R1d2 {[%clk 0:00:01]}  Nb4 {[%clk 0:00:20]} 39. Nc1 {[%clk 0:00:01]}  Nxd3 {[%clk 0:00:18]} 40. Nxd3 {[%clk 0:00:02]}  Nxd4 {[%clk 0:00:19]} 41. Nxd4 {[%clk 0:00:02]}  Qxg2+ {[%clk 0:00:19]} 42. Kxg2 {[%clk 0:00:03]}  Bxd4 {[%clk 0:00:19]} 43. Re2 {[%clk 0:00:03]}  Kf7 {[%clk 0:00:19]} 44. Ne1 {[%clk 0:00:01]}  Rc8 {[%clk 0:00:19]} 45. Nf3 {[%clk 0:00:02]}  Bf6 {[%clk 0:00:13]} 46. g5 {[%clk 0:00:02]}  Bd8 {[%clk 0:00:13]} 47. Ne5+ {[%clk 0:00:02]}  Kg8 {[%clk 0:00:13]} 48. Ng6 {[%clk 0:00:03]}  Re8 {[%clk 0:00:13]} 49. f5 {[%clk 0:00:02]}  Bxg5 {[%clk 0:00:09]} 50. h4 {[%clk 0:00:01]}  Bf6 {[%clk 0:00:09]} 51. fxe6 {[%clk 0:00:02]}  Rc6 {[%clk 0:00:10]} 52. Nf4 {[%clk 0:00:02]}  d4 {[%clk 0:00:10]} 53. Kf3 {[%clk 0:00:01]}  d3 {[%clk 0:00:10]} 54. Rd2 {[%clk 0:00:02]}  Rexe6 {[%clk 0:00:10]} 55. Nxe6 {[%clk 0:00:02]}  Rxe6 {[%clk 0:00:11]} 56. Rxd3 {[%clk 0:00:03]}  Kf7 {[%clk 0:00:11]} 57. h5 {[%clk 0:00:03]}  Ke8 {[%clk 0:00:10]} 58. Kg4 {[%clk 0:00:03]}  Be7 {[%clk 0:00:10]} 59. Kf5 {[%clk 0:00:03]}  Rf6+ {[%clk 0:00:10]} 60. Kg4 {[%clk 0:00:03]}  Rb6 {[%clk 0:00:11]} 61. Re3 {[%clk 0:00:02]}  Kf7 {[%clk 0:00:11]} 62. Rf3+ {[%clk 0:00:03]}  Bf6 {[%clk 0:00:12]} 63. Rd3 {[%clk 0:00:04]}  Ke6 {[%clk 0:00:09]} 64. Re3+ {[%clk 0:00:04]}  Kd7 {[%clk 0:00:10]} 65. Kf5 {[%clk 0:00:04]}  Rb5+ {[%clk 0:00:10]} 66. Kg4 {[%clk 0:00:04]}  Rg5+ {[%clk 0:00:09]} 67. Kf3 {[%clk 0:00:03]}  Rxh5 {[%clk 0:00:10]} 68. Rd3+ {[%clk 0:00:04]}  Ke8 {[%clk 0:00:10]} 69. Re3+ {[%clk 0:00:04]}  Kf7 {[%clk 0:00:11]} 70. Rd3 {[%clk 0:00:05]}  Rb5 {[%clk 0:00:11]} 71. Bf2 {[%clk 0:00:04]}  a5 {[%clk 0:00:10]} 72. Kg4 {[%clk 0:00:04]}  Kg6 {[%clk 0:00:11]} 73. Kf4 {[%clk 0:00:03]}  h5 {[%clk 0:00:11]} 74. Ke4 {[%clk 0:00:03]}  Rb4+ {[%clk 0:00:12]} 75. Kd5 {[%clk 0:00:03]}  a4 {[%clk 0:00:13]} 76. bxa4 {[%clk 0:00:03]}  Rxa4 {[%clk 0:00:13]} 77. Ke6 {[%clk 0:00:02]}  Re4+ {[%clk 0:00:13]} 78. Kd5 {[%clk 0:00:03]}  Rg4 {[%clk 0:00:14]} 79. Kd6 {[%clk 0:00:04]}  h4 {[%clk 0:00:14]} 80. Ke6 {[%clk 0:00:03]}  Re4+ {[%clk 0:00:13]} 81. Kd5 {[%clk 0:00:03]}  Rf4 {[%clk 0:00:14]} 82. Be1 {[%clk 0:00:03]}  Kf5 {[%clk 0:00:14]} 83. Rb3 {[%clk 0:00:02]}  Rd4+ {[%clk 0:00:13]} 84. Kc5 {[%clk 0:00:03]}  Re4 {[%clk 0:00:14]} 85. Bf2 {[%clk 0:00:02]}  g5 {[%clk 0:00:14]} 86. Rxb7 {[%clk 0:00:02]}  Re2 {[%clk 0:00:14]} 87. Bg1 {[%clk 0:00:01]}  h3 {[%clk 0:00:13]} 88. Kc4 {[%clk 0:00:01]}  h2 {[%clk 0:00:12]} 89. Rb5+ {[%clk 0:00:02]}  Kg6 {[%clk 0:00:12]} 90. Bxh2 {[%clk 0:00:03]}  Rxh2 {[%clk 0:00:13]} 91. Kd3 {[%clk 0:00:04]}  Rh4 {[%clk 0:00:13]} 92. Ke3 {[%clk 0:00:04]}  Rf4 {[%clk 0:00:14]} 93. Ra5 {[%clk 0:00:04]}  Rf5 {[%clk 0:00:14]} 94. Ra8 {[%clk 0:00:04]}  Bg7 {[%clk 0:00:14]} 95. Ke4 {[%clk 0:00:04]}  Rf4+ {[%clk 0:00:14]} 96. Ke3 {[%clk 0:00:05]}  Rf7 {[%clk 0:00:14]} 97. Ke4 {[%clk 0:00:04]}  Re7+ {[%clk 0:00:13]} 98. Kf3 {[%clk 0:00:04]}  Kf5 {[%clk 0:00:14]} 99. Ra5+ {[%clk 0:00:04]}  Be5 {[%clk 0:00:14]} 100. Ra4 {[%clk 0:00:05]}  Rc7 {[%clk 0:00:14]} 101. Kg2 {[%clk 0:00:04]}  g4 {[%clk 0:00:14]} 102. Ra2 {[%clk 0:00:03]}  Rc3 {[%clk 0:00:14]} 103. Rf2+ {[%clk 0:00:04]}  Kg5 {[%clk 0:00:14]} 104. Re2 {[%clk 0:00:05]}  Kf4 {[%clk 0:00:14]} 105. Ra2 {[%clk 0:00:06]}  Rg3+ {[%clk 0:00:13]} 106. Kf2 {[%clk 0:00:06]}  Rd3 {[%clk 0:00:14]} 107. Kg2 {[%clk 0:00:05]}  Kf5 {[%clk 0:00:14]} 108. Rf2+ {[%clk 0:00:05]}  Bf4 {[%clk 0:00:14]} 109. Ra2 {[%clk 0:00:05]}  Rd2+ {[%clk 0:00:14]} 110. Rxd2 {[%clk 0:00:05]}  Bxd2 {[%clk 0:00:15]} 111. Kf2 {[%clk 0:00:05]}  Bf4 {[%clk 0:00:15]} 0-1


[Site "https://www.chess.com"]

[Event "Titled Tuesday Blitz November 9 2021"]
[White "Vakhlamov, Igor L."]
[Black "Grischuk, Alexander"]
[WhiteFideId "24126748"]
[BlackFideId "4126025"]
[WhiteElo "2416"]
[BlackElo "2757"]
[Result "0-1"]
[Round "03"]
[TimeControl "180+1"]
[Date "2021.11.09"]
[WhiteClock "0:00:12"]
[BlackClock "0:00:09"]

1. e4 {[%clk 0:03:00]}  c6 {[%clk 0:03:00]} 2. Nc3 {[%clk 0:02:59]}  d5 {[%clk 0:03:00]} 3. Nf3 {[%clk 0:03:00]}  Bg4 {[%clk 0:02:59]} 4. h3 {[%clk 0:03:00]}  Bxf3 {[%clk 0:02:59]} 5. Qxf3 {[%clk 0:03:01]}  e6 {[%clk 0:02:59]} 6. d4 {[%clk 0:02:59]}  Nf6 {[%clk 0:02:59]} 7. Bd3 {[%clk 0:02:52]}  dxe4 {[%clk 0:02:55]} 8. Nxe4 {[%clk 0:02:53]}  Qxd4 {[%clk 0:02:55]} 9. c3 {[%clk 0:02:54]}  Qd8 {[%clk 0:02:54]} 10. O-O {[%clk 0:02:53]}  Nbd7 {[%clk 0:02:47]} 11. Bf4 {[%clk 0:02:50]}  Nxe4 {[%clk 0:02:28]} 12. Bxe4 {[%clk 0:02:50]}  Be7 {[%clk 0:02:27]} 13. Rad1 {[%clk 0:02:47]}  Qc8 {[%clk 0:02:26]} 14. Rd2 {[%clk 0:02:24]}  Nf6 {[%clk 0:02:25]} 15. Bc2 {[%clk 0:02:07]}  O-O {[%clk 0:02:24]} 16. Rfd1 {[%clk 0:02:07]}  Rd8 {[%clk 0:02:21]} 17. g4 {[%clk 0:02:01]}  Rxd2 {[%clk 0:02:20]} 18. Rxd2 {[%clk 0:02:02]}  Qe8 {[%clk 0:02:11]} 19. c4 {[%clk 0:01:59]}  Rd8 {[%clk 0:02:10]} 20. g5 {[%clk 0:01:59]}  Rxd2 {[%clk 0:02:03]} 21. Bxd2 {[%clk 0:02:00]}  Nd7 {[%clk 0:02:04]} 22. h4 {[%clk 0:01:56]}  g6 {[%clk 0:01:58]} 23. a3 {[%clk 0:01:44]}  Qd8 {[%clk 0:01:44]} 24. Bc3 {[%clk 0:01:42]}  Bf8 {[%clk 0:01:42]} 25. Qe3 {[%clk 0:01:36]}  Bg7 {[%clk 0:01:22]} 26. Bxg7 {[%clk 0:01:33]}  Kxg7 {[%clk 0:01:23]} 27. Qxa7 {[%clk 0:01:33]}  Qc7 {[%clk 0:01:10]} 28. Qd4+ {[%clk 0:01:07]}  Kg8 {[%clk 0:01:08]} 29. b4 {[%clk 0:01:05]}  c5 {[%clk 0:01:02]} 30. Qe4 {[%clk 0:00:57]}  cxb4 {[%clk 0:00:56]} 31. axb4 {[%clk 0:00:58]}  b6 {[%clk 0:00:56]} 32. Bd3 {[%clk 0:00:57]}  Qd6 {[%clk 0:00:53]} 33. Qa8+ {[%clk 0:00:39]}  Kg7 {[%clk 0:00:51]} 34. Qa3 {[%clk 0:00:38]}  Qd4 {[%clk 0:00:45]} 35. Be2 {[%clk 0:00:35]}  Ne5 {[%clk 0:00:18]} 36. Qe3 {[%clk 0:00:32]}  Qxe3 {[%clk 0:00:17]} 37. fxe3 {[%clk 0:00:32]}  Nc6 {[%clk 0:00:17]} 38. b5 {[%clk 0:00:31]}  Ne5 {[%clk 0:00:16]} 39. Kf2 {[%clk 0:00:25]}  h6 {[%clk 0:00:12]} 40. e4 {[%clk 0:00:25]}  hxg5 {[%clk 0:00:11]} 41. hxg5 {[%clk 0:00:26]}  Kf8 {[%clk 0:00:11]} 42. Ke3 {[%clk 0:00:26]}  Ke7 {[%clk 0:00:11]} 43. Kd4 {[%clk 0:00:23]}  Kd6 {[%clk 0:00:11]} 44. Bd1 {[%clk 0:00:23]}  Nd7 {[%clk 0:00:11]} 45. Be2 {[%clk 0:00:11]}  e5+ {[%clk 0:00:11]} 46. Kd3 {[%clk 0:00:11]}  f6 {[%clk 0:00:07]} 47. gxf6 {[%clk 0:00:09]}  Nxf6 {[%clk 0:00:08]} 48. Ke3 {[%clk 0:00:10]}  Kc5 {[%clk 0:00:07]} 49. Kd3 {[%clk 0:00:10]}  Ne8 {[%clk 0:00:07]} 50. Kc3 {[%clk 0:00:05]}  Nd6 {[%clk 0:00:07]} 51. Bd3 {[%clk 0:00:06]}  g5 {[%clk 0:00:08]} 52. Kd2 {[%clk 0:00:05]}  Nxc4+ {[%clk 0:00:06]} 53. Ke2 {[%clk 0:00:05]}  Kxb5 {[%clk 0:00:06]} 54. Kf3 {[%clk 0:00:05]}  Kc5 {[%clk 0:00:06]} 55. Kg4 {[%clk 0:00:06]}  Kd4 {[%clk 0:00:06]} 56. Bc2 {[%clk 0:00:05]}  Ne3+ {[%clk 0:00:06]} 57. Kxg5 {[%clk 0:00:06]}  Nxc2 {[%clk 0:00:07]} 58. Kf5 {[%clk 0:00:07]}  b5 {[%clk 0:00:07]} 59. Ke6 {[%clk 0:00:08]}  b4 {[%clk 0:00:08]} 60. Kd6 {[%clk 0:00:09]}  b3 {[%clk 0:00:09]} 61. Kc6 {[%clk 0:00:10]}  b2 {[%clk 0:00:10]} 62. Kb5 {[%clk 0:00:11]}  b1=Q+ {[%clk 0:00:10]} 63. Kc6 {[%clk 0:00:12]}  Kxe4 {[%clk 0:00:09]} 64. Kd6 {[%clk 0:00:12]}  Qb6+ {[%clk 0:00:09]} 0-1


[Site "https://www.chess.com"]

[Event "Titled Tuesday Blitz November 9 2021"]
[White "Weetik, Vjacheslav"]
[Black "Sjugirov, Sanan"]
[WhiteFideId "4153472"]
[BlackFideId "4189302"]
[WhiteElo "2469"]
[BlackElo "2653"]
[Result "0-1"]
[Round "03"]
[TimeControl "180+1"]
[Date "2021.11.09"]
[WhiteClock "0:00:01"]
[BlackClock "0:00:02"]

1. d4 {[%clk 0:03:00]}  Nf6 {[%clk 0:03:00]} 2. Bf4 {[%clk 0:02:59]}  e6 {[%clk 0:02:59]} 3. e3 {[%clk 0:02:59]}  c5 {[%clk 0:02:59]} 4. Nd2 {[%clk 0:02:58]}  cxd4 {[%clk 0:02:59]} 5. exd4 {[%clk 0:02:58]}  b6 {[%clk 0:03:00]} 6. Ngf3 {[%clk 0:02:57]}  Bb7 {[%clk 0:03:00]} 7. Bd3 {[%clk 0:02:58]}  Be7 {[%clk 0:03:01]} 8. O-O {[%clk 0:02:55]}  d6 {[%clk 0:03:00]} 9. h3 {[%clk 0:02:54]}  O-O {[%clk 0:03:00]} 10. Re1 {[%clk 0:02:55]}  Nbd7 {[%clk 0:02:59]} 11. a4 {[%clk 0:02:53]}  a6 {[%clk 0:02:59]} 12. c3 {[%clk 0:02:54]}  Re8 {[%clk 0:02:57]} 13. Bh2 {[%clk 0:02:54]}  Qc7 {[%clk 0:02:57]} 14. Nc4 {[%clk 0:02:45]}  Bf8 {[%clk 0:02:55]} 15. Bf1 {[%clk 0:02:39]}  Bc6 {[%clk 0:02:45]} 16. Ne3 {[%clk 0:02:36]}  Qb7 {[%clk 0:02:40]} 17. Nd2 {[%clk 0:02:33]}  g6 {[%clk 0:02:29]} 18. Ndc4 {[%clk 0:02:27]}  Qc7 {[%clk 0:02:26]} 19. Rc1 {[%clk 0:02:13]}  b5 {[%clk 0:02:21]} 20. axb5 {[%clk 0:02:11]}  axb5 {[%clk 0:02:22]} 21. Na3 {[%clk 0:02:11]}  Qb7 {[%clk 0:02:13]} 22. Nac2 {[%clk 0:02:02]}  Nb6 {[%clk 0:01:51]} 23. Nb4 {[%clk 0:02:02]}  Bd7 {[%clk 0:01:51]} 24. Be2 {[%clk 0:01:56]}  Qc7 {[%clk 0:01:48]} 25. b3 {[%clk 0:01:45]}  Qd8 {[%clk 0:01:22]} 26. Bd3 {[%clk 0:01:44]}  Rc8 {[%clk 0:01:09]} 27. Qe2 {[%clk 0:01:43]}  d5 {[%clk 0:00:56]} 28. Be5 {[%clk 0:01:20]}  h5 {[%clk 0:00:39]} 29. Qf3 {[%clk 0:00:49]}  Nh7 {[%clk 0:00:36]} 30. g4 {[%clk 0:00:39]}  h4 {[%clk 0:00:33]} 31. Na6 {[%clk 0:00:28]}  Bc6 {[%clk 0:00:28]} 32. b4 {[%clk 0:00:22]}  Nd7 {[%clk 0:00:28]} 33. Bh2 {[%clk 0:00:21]}  Ng5 {[%clk 0:00:27]} 34. Qg2 {[%clk 0:00:21]}  e5 {[%clk 0:00:21]} 35. Nc5 {[%clk 0:00:18]}  e4 {[%clk 0:00:19]} 36. Be2 {[%clk 0:00:18]}  Nb6 {[%clk 0:00:16]} 37. f4 {[%clk 0:00:17]}  exf3 {[%clk 0:00:14]} 38. Bxf3 {[%clk 0:00:18]}  Bd6 {[%clk 0:00:13]} 39. Bxd6 {[%clk 0:00:14]}  Qxd6 {[%clk 0:00:13]} 40. Nd3 {[%clk 0:00:08]}  Nd7 {[%clk 0:00:11]} 41. Nc2 {[%clk 0:00:06]}  Kg7 {[%clk 0:00:09]} 42. Rxe8 {[%clk 0:00:05]}  Rxe8 {[%clk 0:00:10]} 43. Re1 {[%clk 0:00:05]}  Rxe1+ {[%clk 0:00:10]} 44. Ncxe1 {[%clk 0:00:06]}  Qf6 {[%clk 0:00:09]} 45. Be2 {[%clk 0:00:05]}  Nb6 {[%clk 0:00:08]} 46. Nf3 {[%clk 0:00:06]}  Nc4 {[%clk 0:00:07]} 47. Nxg5 {[%clk 0:00:05]}  Qxg5 {[%clk 0:00:08]} 48. Qf2 {[%clk 0:00:05]}  Nd2 {[%clk 0:00:07]} 49. Qf4 {[%clk 0:00:05]}  Qxf4 {[%clk 0:00:06]} 50. Nxf4 {[%clk 0:00:06]}  Ne4 {[%clk 0:00:07]} 51. Bf3 {[%clk 0:00:04]}  Nxc3 {[%clk 0:00:07]} 52. Kf2 {[%clk 0:00:05]}  Na2 {[%clk 0:00:07]} 53. Bxd5 {[%clk 0:00:05]}  Nxb4 {[%clk 0:00:05]} 54. Bxc6 {[%clk 0:00:04]}  Nxc6 {[%clk 0:00:06]} 55. Ke3 {[%clk 0:00:04]}  b4 {[%clk 0:00:06]} 56. d5 {[%clk 0:00:04]}  Ne5 {[%clk 0:00:06]} 57. Kd4 {[%clk 0:00:04]}  f6 {[%clk 0:00:04]} 58. Ne2 {[%clk 0:00:02]}  Kf7 {[%clk 0:00:05]} 59. Kc5 {[%clk 0:00:02]}  Nd3+ {[%clk 0:00:04]} 60. Kc4 {[%clk 0:00:01]}  Nf2 {[%clk 0:00:02]} 0-1


[Site "https://www.chess.com"]

[Event "Titled Tuesday Blitz November 9 2021"]
[White "Ahmadzada, Ahmad"]
[Black "Lovkov, Roman"]
[WhiteFideId "13413007"]
[BlackFideId "4157389"]
[WhiteElo "2226"]
[BlackElo "2371"]
[Result "1-0"]
[Round "04"]
[TimeControl "180+1"]
[Date "2021.11.09"]
[WhiteClock "0:00:44"]
[BlackClock "0:00:08"]

1. e4 {[%clk 0:03:00]}  c5 {[%clk 0:02:59]} 2. Nf3 {[%clk 0:03:00]}  d6 {[%clk 0:02:59]} 3. Nc3 {[%clk 0:03:00]}  Nf6 {[%clk 0:03:00]} 4. e5 {[%clk 0:03:00]}  dxe5 {[%clk 0:02:58]} 5. Nxe5 {[%clk 0:03:01]}  e6 {[%clk 0:02:44]} 6. g3 {[%clk 0:03:00]}  Nbd7 {[%clk 0:02:41]} 7. Nc4 {[%clk 0:02:59]}  Nb6 {[%clk 0:02:38]} 8. Ne3 {[%clk 0:02:59]}  Bd7 {[%clk 0:02:34]} 9. Bg2 {[%clk 0:02:59]}  Qc7 {[%clk 0:02:35]} 10. O-O {[%clk 0:02:59]}  Bc6 {[%clk 0:02:35]} 11. d3 {[%clk 0:02:57]}  Be7 {[%clk 0:02:27]} 12. a4 {[%clk 0:02:55]}  O-O {[%clk 0:02:18]} 13. a5 {[%clk 0:02:54]}  Nbd7 {[%clk 0:02:16]} 14. Nc4 {[%clk 0:02:53]}  Bxg2 {[%clk 0:02:14]} 15. Kxg2 {[%clk 0:02:53]}  b6 {[%clk 0:02:09]} 16. Qf3 {[%clk 0:02:50]}  Rac8 {[%clk 0:01:13]} 17. Bf4 {[%clk 0:02:36]}  Qd8 {[%clk 0:00:38]} 18. Nb5 {[%clk 0:02:27]}  a6 {[%clk 0:00:30]} 19. Na7 {[%clk 0:02:27]}  b5 {[%clk 0:00:24]} 20. Nxc8 {[%clk 0:02:26]}  Qxc8 {[%clk 0:00:25]} 21. Bd6 {[%clk 0:02:15]}  bxc4 {[%clk 0:00:19]} 22. Bxe7 {[%clk 0:02:14]}  Ne5 {[%clk 0:00:20]} 23. Qe2 {[%clk 0:01:47]}  Qb7+ {[%clk 0:00:20]} 24. f3 {[%clk 0:01:46]}  Qxe7 {[%clk 0:00:12]} 25. Qxe5 {[%clk 0:01:46]}  cxd3 {[%clk 0:00:13]} 26. cxd3 {[%clk 0:01:46]}  Rd8 {[%clk 0:00:14]} 27. Rac1 {[%clk 0:01:43]}  Nd5 {[%clk 0:00:12]} 28. Rf2 {[%clk 0:01:38]}  h6 {[%clk 0:00:11]} 29. Rd2 {[%clk 0:01:26]}  Rc8 {[%clk 0:00:10]} 30. b3 {[%clk 0:01:23]}  Qb7 {[%clk 0:00:10]} 31. d4 {[%clk 0:01:22]}  Qb4 {[%clk 0:00:09]} 32. Qe2 {[%clk 0:01:07]}  Qxa5 {[%clk 0:00:06]} 33. Rdc2 {[%clk 0:01:07]}  Rb8 {[%clk 0:00:06]} 34. Rxc5 {[%clk 0:00:57]}  Qa3 {[%clk 0:00:06]} 35. Rc8+ {[%clk 0:00:55]}  Rxc8 {[%clk 0:00:06]} 36. Rxc8+ {[%clk 0:00:56]}  Kh7 {[%clk 0:00:07]} 37. Qe4+ {[%clk 0:00:50]}  f5 {[%clk 0:00:08]} 38. Qxe6 {[%clk 0:00:46]}  Qb2+ {[%clk 0:00:08]} 39. Kh3 {[%clk 0:00:44]} 1-0


[Site "https://www.chess.com"]

[Event "Titled Tuesday Blitz November 9 2021"]
[White "Al-Tarboush, Ward"]
[Black "Svane, Rasmus"]
[WhiteFideId "7601450"]
[BlackFideId "4657101"]
[WhiteElo "2276"]
[BlackElo "2643"]
[Result "0-1"]
[Round "04"]
[TimeControl "180+1"]
[Date "2021.11.09"]
[WhiteClock "0:00:02"]
[BlackClock "0:01:05"]

1. d4 {[%clk 0:03:00]}  Nf6 {[%clk 0:02:59]} 2. Nf3 {[%clk 0:03:00]}  d5 {[%clk 0:02:59]} 3. Nc3 {[%clk 0:03:00]}  c6 {[%clk 0:02:50]} 4. Bg5 {[%clk 0:03:00]}  h6 {[%clk 0:02:49]} 5. Bxf6 {[%clk 0:02:59]}  exf6 {[%clk 0:02:50]} 6. e4 {[%clk 0:02:58]}  dxe4 {[%clk 0:02:42]} 7. Nxe4 {[%clk 0:02:59]}  f5 {[%clk 0:02:43]} 8. Nc3 {[%clk 0:02:56]}  Bd6 {[%clk 0:02:42]} 9. Qe2+ {[%clk 0:02:55]}  Be6 {[%clk 0:02:35]} 10. d5 {[%clk 0:02:48]}  cxd5 {[%clk 0:02:36]} 11. Nd4 {[%clk 0:02:48]}  Qe7 {[%clk 0:02:31]} 12. O-O-O {[%clk 0:01:59]}  O-O {[%clk 0:02:24]} 13. Ndb5 {[%clk 0:01:58]}  Rd8 {[%clk 0:02:13]} 14. Nxd6 {[%clk 0:01:51]}  Qxd6 {[%clk 0:02:11]} 15. Qd2 {[%clk 0:01:42]}  Nc6 {[%clk 0:02:08]} 16. Nb5 {[%clk 0:01:30]}  Qc5 {[%clk 0:02:08]} 17. Nd4 {[%clk 0:01:28]}  Rac8 {[%clk 0:02:09]} 18. c3 {[%clk 0:01:25]}  a6 {[%clk 0:02:05]} 19. Kb1 {[%clk 0:01:22]}  b5 {[%clk 0:02:05]} 20. Nb3 {[%clk 0:01:21]}  Qb6 {[%clk 0:02:04]} 21. Qe3 {[%clk 0:01:16]}  d4 {[%clk 0:01:41]} 22. Nxd4 {[%clk 0:00:58]}  b4 {[%clk 0:01:41]} 23. Bxa6 {[%clk 0:00:25]}  bxc3 {[%clk 0:01:34]} 24. Qxc3 {[%clk 0:00:24]}  Bxa2+ {[%clk 0:01:19]} 25. Ka1 {[%clk 0:00:03]}  Qxa6 {[%clk 0:01:15]} 26. Nxc6 {[%clk 0:00:03]}  Bb3+ {[%clk 0:01:06]} 27. Kb1 {[%clk 0:00:02]}  Qa2+ {[%clk 0:01:05]} 0-1


[Site "https://www.chess.com"]

[Event "Titled Tuesday Blitz November 9 2021"]
[White "Babazada, Khazar"]
[Black "Matinian, Nikita"]
[WhiteFideId "13413554"]
[BlackFideId "24129100"]
[WhiteElo "2302"]
[BlackElo "2422"]
[Result "1-0"]
[Round "04"]
[TimeControl "180+1"]
[Date "2021.11.09"]
[WhiteClock "0:00:35"]
[BlackClock "0:00:29"]

1. e4 {[%clk 0:03:00]}  e5 {[%clk 0:02:59]} 2. Nf3 {[%clk 0:03:00]}  Nc6 {[%clk 0:03:00]} 3. Bb5 {[%clk 0:02:58]}  a6 {[%clk 0:03:00]} 4. Ba4 {[%clk 0:02:58]}  Nf6 {[%clk 0:03:00]} 5. O-O {[%clk 0:02:57]}  Be7 {[%clk 0:03:01]} 6. Re1 {[%clk 0:02:55]}  b5 {[%clk 0:03:01]} 7. Bb3 {[%clk 0:02:55]}  d6 {[%clk 0:03:02]} 8. h3 {[%clk 0:02:54]}  O-O {[%clk 0:02:55]} 9. c3 {[%clk 0:02:54]}  Nb8 {[%clk 0:02:54]} 10. d4 {[%clk 0:02:54]}  Nbd7 {[%clk 0:02:53]} 11. a4 {[%clk 0:02:54]}  bxa4 {[%clk 0:02:48]} 12. Bxa4 {[%clk 0:02:50]}  Bb7 {[%clk 0:02:48]} 13. d5 {[%clk 0:02:49]}  Nc5 {[%clk 0:02:43]} 14. Bc2 {[%clk 0:02:48]}  a5 {[%clk 0:02:44]} 15. Nbd2 {[%clk 0:02:45]}  a4 {[%clk 0:02:35]} 16. Nf1 {[%clk 0:02:41]}  c6 {[%clk 0:02:34]} 17. c4 {[%clk 0:02:31]}  cxd5 {[%clk 0:02:28]} 18. exd5 {[%clk 0:02:26]}  g6 {[%clk 0:02:23]} 19. Ra3 {[%clk 0:02:16]}  Re8 {[%clk 0:02:22]} 20. Ng3 {[%clk 0:02:14]}  Bf8 {[%clk 0:02:22]} 21. Be3 {[%clk 0:02:11]}  Qb6 {[%clk 0:02:18]} 22. Qa1 {[%clk 0:02:00]}  Qb4 {[%clk 0:02:15]} 23. Bxc5 {[%clk 0:01:55]}  Qxc5 {[%clk 0:02:14]} 24. Nd2 {[%clk 0:01:51]}  Bxd5 {[%clk 0:02:01]} 25. Bxa4 {[%clk 0:01:49]}  Bc6 {[%clk 0:01:55]} 26. Nde4 {[%clk 0:01:49]}  Nxe4 {[%clk 0:01:51]} 27. Nxe4 {[%clk 0:01:50]}  Bxe4 {[%clk 0:01:50]} 28. Bxe8 {[%clk 0:01:46]}  Rxe8 {[%clk 0:01:49]} 29. Rxe4 {[%clk 0:01:43]}  d5 {[%clk 0:01:50]} 30. Ra5 {[%clk 0:01:40]}  dxe4 {[%clk 0:01:39]} 31. Rxc5 {[%clk 0:01:38]}  Bxc5 {[%clk 0:01:40]} 32. Qb1 {[%clk 0:01:22]}  e3 {[%clk 0:01:37]} 33. fxe3 {[%clk 0:01:18]}  Bxe3+ {[%clk 0:01:38]} 34. Kf1 {[%clk 0:01:19]}  e4 {[%clk 0:01:36]} 35. b4 {[%clk 0:01:17]}  Bf4 {[%clk 0:01:35]} 36. c5 {[%clk 0:01:13]}  e3 {[%clk 0:01:35]} 37. Ke2 {[%clk 0:01:06]}  Rd8 {[%clk 0:01:35]} 38. Kf3 {[%clk 0:01:02]}  Bg5 {[%clk 0:00:54]} 39. c6 {[%clk 0:01:02]}  Rd2 {[%clk 0:00:54]} 40. c7 {[%clk 0:00:48]}  Rf2+ {[%clk 0:00:53]} 41. Ke4 {[%clk 0:00:48]}  f5+ {[%clk 0:00:41]} 42. Kd5 {[%clk 0:00:44]}  Rd2+ {[%clk 0:00:38]} 43. Ke6 {[%clk 0:00:44]}  e2 {[%clk 0:00:37]} 44. c8=Q+ {[%clk 0:00:44]}  Kg7 {[%clk 0:00:38]} 45. Qa1+ {[%clk 0:00:36]}  Kh6 {[%clk 0:00:36]} 46. Qf8+ {[%clk 0:00:36]}  Kh5 {[%clk 0:00:36]} 47. g4+ {[%clk 0:00:37]}  fxg4 {[%clk 0:00:31]} 48. hxg4+ {[%clk 0:00:37]}  Kxg4 {[%clk 0:00:32]} 49. Qg1+ {[%clk 0:00:36]}  Kh5 {[%clk 0:00:31]} 50. Qf3+ {[%clk 0:00:36]}  Kh6 {[%clk 0:00:31]} 51. Qh2+ {[%clk 0:00:34]}  Kg7 {[%clk 0:00:30]} 52. Qe5+ {[%clk 0:00:35]}  Kh6 {[%clk 0:00:29]} 53. Qh3+ {[%clk 0:00:35]} 1-0


[Site "https://www.chess.com"]